bitfinex/quotes_BTCUSD_20220202
["timestamp","ask_amount","ask_price","bid_price","bid_amount"]
[1643771538215,0.001,38717.0,38714.0,0.19372251]
[1643771538416,0.00223714,38717.0,38714.0,0.19372251]
[1643771539416,0.001,38717.0,38714.0,0.19372251]
[1643771539616,0.00223714,38717.0,38714.0,0.19372251]
[1643771540074,0.00223714,38717.0,38714.0,0.12914751]
[1643771540474,0.001,38717.0,38714.0,0.12914751]
[1643771540773,0.00223714,38717.0,38714.0,0.12914751]
[1643771541775,0.001,38717.0,38714.0,0.12914751]
[1643771541976,0.00223714,38717.0,38716.0,0.00012896]
[1643771543076,0.001,38717.0,38716.0,0.00012896]
[1643771546328,0.003,38721.0,38718.0,0.35]
[1643771546523,0.003,38723.0,38719.0,1.1124732]
[1643771546524,0.023,38723.0,38719.0,1.1124732]
[1643771546723,0.03565544,38724.0,38720.0,0.49]
[1643771546724,0.03124993,38724.0,38720.0,0.49]
[1643771546923,0.03124993,38724.0,38721.0,0.40072]
[1643771547122,0.03124993,38724.0,38722.0,0.22913402]
[1643771547322,0.03124993,38724.0,38723.0,0.59063466]
[1643771547568,0.03124993,38724.0,38723.0,0.33063466]
[1643771548669,0.03124993,38724.0,38723.0,0.53797061]
[1643771550874,0.03124993,38724.0,38723.0,0.33063466]
[1643771551073,0.03124993,38724.0,38723.0,0.50662421]
[1643771551325,0.03124993,38724.0,38723.0,0.33063466]
[1643771551524,0.03124993,38724.0,38723.0,0.33089302]
[1643771551919,0.03124993,38724.0,38723.0,0.5049161]
[1643771552520,0.03124993,38724.0,38723.0,0.33089302]
[1643771555073,0.03124993,38724.0,38723.0,0.27889302]
[1643771555473,0.03124993,38724.0,38723.0,0.4566012]
[1643771555674,0.03124993,38724.0,38723.0,0.27889302]
[1643771557575,0.03124993,38724.0,38723.0,0.45987259]
[1643771557775,0.03124993,38724.0,38723.0,0.45339397]
[1643771557975,0.03124993,38724.0,38723.0,0.27889302]
[1643771559018,0.03124993,38724.0,38723.0,0.46441401]
[1643771560218,0.03124993,38724.0,38723.0,0.45388108]
[1643771560517,0.03124993,38724.0,38723.0,0.27889302]
[1643771560717,0.03124993,38724.0,38723.0,0.45620006]
[1643771561118,0.03124993,38724.0,38723.0,0.27889302]
[1643771561618,0.03124993,38724.0,38723.0,0.45291889]
[1643771564071,0.03124993,38724.0,38723.0,0.27889302]
[1643771565170,0.03124993,38724.0,38723.0,0.54808688]
[1643771565372,0.03124993,38724.0,38723.0,0.72236172]
[1643771565872,0.03124993,38724.0,38723.0,0.54808688]
[1643771566172,0.03124993,38724.0,38723.0,0.72194309]
[1643771566422,0.03124993,38724.0,38723.0,0.54808688]
[1643771566623,0.03124993,38724.0,38723.0,0.72240012]
[1643771566823,0.03124993,38724.0,38723.0,1.07112012]
[1643771568625,0.03124993,38724.0,38723.0,0.77240012]
[1643771568829,0.03124993,38724.0,38723.0,0.59808688]
[1643771569025,0.03124993,38724.0,38723.0,0.50450356]
[1643771569226,0.03124993,38724.0,38723.0,0.00025836]
[1643771569727,0.34124993,38724.0,38723.0,0.00025836]
[1643771572079,0.03124993,38724.0,38723.0,0.00025836]
[1643771581718,0.02124993,38724.0,38723.0,0.00025836]
[1643771586776,0.02124993,38724.0,38723.0,0.29610915]
[1643771587574,0.02124993,38724.0,38723.0,0.00025836]
[1643771589322,0.02124993,38724.0,38723.0,0.48854594]
[1643771591423,0.02124993,38724.0,38723.0,0.31291426]
[1643771597025,0.02124993,38724.0,38723.0,0.48738837]
[1643771599127,0.02124993,38724.0,38723.0,0.83610837]
[1643771599328,0.02124993,38724.0,38723.0,0.66163426]
[1643771599528,0.02124993,38724.0,38723.0,0.31291426]
[1643771600990,0.02124993,38724.0,38723.0,0.4921385]
[1643771602387,0.02124993,38724.0,38723.0,0.31291426]
[1643771604232,0.02124993,38724.0,38723.0,0.4883014]
[1643771607037,0.02124993,38724.0,38723.0,0.31291426]
[1643771608873,0.02124993,38724.0,38723.0,0.36291426]
[1643771611369,0.02124993,38724.0,38723.0,0.31291426]
[1643771614667,0.02124993,38724.0,38723.0,0.00025836]
[1643771615770,0.02124993,38724.0,38723.0,0.31309757]
[1643771620626,0.02124993,38724.0,38723.0,0.48841338]
[1643771620825,0.02124993,38724.0,38723.0,0.31309757]
[1643771621427,0.02124993,38724.0,38723.0,0.48750854]
[1643771621626,0.02124993,38724.0,38723.0,0.48692524]
[1643771622027,0.02124993,38724.0,38723.0,0.31251427]
[1643771622874,0.02124993,38724.0,38723.0,0.31276675]
[1643771625274,0.02124993,38724.0,38723.0,6.27e-05]
[1643771626921,0.26124993,38724.0,38723.0,6.27e-05]
[1643771629021,0.02124993,38724.0,38723.0,6.27e-05]
[1643771630873,0.22124993,38724.0,38723.0,6.27e-05]
[1643771631876,0.51124993,38724.0,38723.0,6.27e-05]
[1643771633176,0.70195005,38724.0,38723.0,6.27e-05]
[1643771633380,0.49,38723.0,38710.0,0.12915]
[1643771633578,0.32753133,38719.0,38706.0,0.002]
[1643771633832,0.34961316,38718.0,38711.0,0.01983661]
[1643771634023,0.05585358,38717.0,38711.0,0.01983661]
[1643771634222,0.2896547,38713.0,38711.0,0.01983661]
[1643771634426,0.402,38712.0,38711.0,0.01983661]
[1643771634825,0.272,38712.0,38711.0,0.01983661]
[1643771635824,0.052,38712.0,38711.0,0.01983661]
[1643771636025,0.052,38712.0,38710.0,0.02]
[1643771636624,0.052,38712.0,38709.0,0.064583]
[1643771636825,0.02,38715.0,38709.0,0.064583]
[1643771637425,0.02,38715.0,38710.0,0.02]
[1643771637687,0.02,38715.0,38711.0,0.064575]
[1643771637891,0.02,38715.0,38711.0,0.24022388]
[1643771638285,0.02,38715.0,38711.0,0.30479688]
[1643771638483,0.00130894,38720.0,38712.0,0.25053282]
[1643771638683,0.00130894,38720.0,38715.0,0.064569]
[1643771638885,0.00130894,38720.0,38715.0,0.129139]
[1643771639084,0.02124993,38724.0,38716.0,0.34872]
[1643771639282,0.02124993,38724.0,38717.0,0.19682708]
[1643771639484,0.02124993,38724.0,38718.0,0.06405073]
[1643771639684,0.02124993,38724.0,38723.0,0.25890975]
[1643771639883,0.04124993,38724.0,38723.0,0.25890975]
[1643771640083,0.04124993,38724.0,38723.0,0.32346475]
[1643771640982,0.02124993,38724.0,38723.0,0.3230766]
[1643771641183,0.02124993,38724.0,38723.0,0.3180766]
[1643771641623,0.02124993,38724.0,38723.0,0.064555]
[1643771641825,0.02124993,38724.0,38722.0,0.02]
[1643771642024,0.58173741,38723.0,38722.0,0.02]
[1643771642424,0.02124993,38724.0,38722.0,0.02]
[1643771642827,0.02124993,38724.0,38719.0,0.25714623]
[1643771642828,0.02255934,38724.0,38719.0,0.064564]
[1643771643024,0.02255934,38724.0,38717.0,0.19682708]
[1643771643829,0.02124993,38724.0,38719.0,0.02]
[1643771644027,0.02124993,38724.0,38720.0,0.064567]
[1643771644028,0.00130944,38722.0,38720.0,0.064567]
[1643771644527,0.00130944,38722.0,38720.0,0.12913149]
[1643771644831,0.00130944,38722.0,38719.0,0.02]
[1643771645077,0.02124993,38724.0,38719.0,0.02]
[1643771645273,0.0532449,38723.0,38719.0,0.02]
[1643771646275,0.052,38723.0,38719.0,0.02]
[1643771646473,0.0532449,38723.0,38719.0,0.02]
[1643771647174,0.2968782,38721.0,38719.0,0.02]
[1643771649231,0.2968782,38721.0,38715.0,0.064575]
[1643771649431,0.23652348,38716.0,38715.0,0.064575]
[1643771649833,0.23652348,38716.0,38713.0,0.064579]
[1643771650033,0.09468695,38710.0,38708.0,0.51178163]
[1643771650233,0.09468695,38710.0,38708.0,0.1302145]
[1643771650832,0.30993178,38709.0,38708.0,0.1302145]
[1643771651033,0.30993178,38709.0,38708.0,0.12915243]
[1643771651433,0.02,38712.0,38708.0,0.12915243]
[1643771651634,0.02,38712.0,38709.0,0.064581]
[1643771652034,0.02,38712.0,38709.0,0.19374237]
[1643771652435,0.3007678,38712.0,38709.0,0.19374237]
[1643771652677,0.3007678,38712.0,38711.0,0.064581]
[1643771654078,0.02,38715.0,38711.0,0.129159]
[1643771654478,0.00125607,38720.0,38711.0,0.129159]
[1643771654778,0.00125607,38720.0,38713.0,0.06457184]
[1643771654779,0.0012561,38720.0,38713.0,0.06457184]
[1643771654978,0.25249698,38715.0,38714.0,0.064574]
[1643771655179,0.34564702,38715.0,38713.0,0.193719]
[1643771655980,0.34564702,38715.0,38713.0,0.32286689]
[1643771657327,0.34564702,38715.0,38713.0,0.25829489]
[1643771658629,0.02,38717.0,38713.0,0.25829489]
[1643771658831,0.02,38717.0,38714.0,0.06457121]
[1643771659131,0.015,38717.0,38714.0,0.06457121]
[1643771659631,0.005,38719.0,38715.0,0.06457]
[1643771659831,0.005,38719.0,38716.0,0.06457]
[1643771660079,0.005,38719.0,38716.0,0.0645715]
[1643771660478,0.37952957,38720.0,38716.0,0.0645715]
[1643771660879,0.37452957,38720.0,38713.0,0.25829489]
[1643771661478,0.37452957,38720.0,38715.0,0.02]
[1643771662480,0.37452957,38720.0,38715.0,0.08327006]
[1643771663279,0.37584689,38720.0,38715.0,0.08327006]
[1643771664325,0.37452957,38720.0,38715.0,0.08327006]
[1643771664525,0.37584689,38720.0,38715.0,0.08327006]
[1643771665527,0.37452957,38720.0,38715.0,0.08327006]
[1643771665725,0.37584689,38720.0,38715.0,0.08327006]
[1643771666126,0.052,38719.0,38715.0,0.02]
[1643771674034,0.047,38719.0,38715.0,0.02]
[1643771675874,0.047,38719.0,38717.0,7.49e-05]
[1643771676477,0.37578693,38720.0,38717.0,7.49e-05]
[1643771676877,0.35848693,38720.0,38717.0,7.49e-05]
[1643771677474,0.35722957,38720.0,38717.0,7.49e-05]
[1643771677674,0.35848776,38720.0,38717.0,7.49e-05]
[1643771678376,0.26829837,38720.0,38718.0,0.24521437]
[1643771678576,0.00125819,38720.0,38718.0,0.30978537]
[1643771678831,0.00125818,38721.0,38718.0,0.30978537]
[1643771679925,0.26765105,38722.0,38718.0,0.30978537]
[1643771680125,0.00125817,38721.0,38718.0,0.30978537]
[1643771680327,0.00125817,38721.0,38718.0,0.064571]
[1643771680328,0.09183744,38721.0,38718.0,0.064571]
[1643771681026,0.09057927,38721.0,38718.0,0.064571]
[1643771681227,0.09183726,38721.0,38718.0,0.064571]
[1643771682227,0.09057927,38721.0,38718.0,0.064571]
[1643771682426,0.09183726,38721.0,38718.0,0.064571]
[1643771682674,0.09183726,38721.0,38718.0,0.059571]
[1643771683377,0.09183726,38721.0,38718.0,0.059471]
[1643771683574,0.09057927,38721.0,38718.0,0.059471]
[1643771683774,0.09183726,38721.0,38718.0,0.059471]
[1643771684777,0.09057927,38721.0,38718.0,0.059471]
[1643771684978,0.0918373,38721.0,38718.0,0.059471]
[1643771685978,0.0918373,38721.0,38720.0,7.319e-05]
[1643771686426,0.3318373,38721.0,38720.0,7.319e-05]
[1643771687026,0.26765105,38722.0,38720.0,7.319e-05]
[1643771687231,0.00125801,38722.0,38720.0,0.06464119]
[1643771687428,0.00125801,38722.0,38720.0,0.13299119]
[1643771687628,0.00125801,38722.0,38721.0,0.39872]
[1643771688029,0.00125801,38722.0,38721.0,0.75890107]
[1643771688228,0.03624993,38724.0,38721.0,1.10758021]
[1643771688430,0.03624993,38724.0,38722.0,0.064551]
[1643771688629,0.03624993,38724.0,38723.0,0.34872]
[1643771688829,0.03624993,38724.0,38723.0,0.05]
[1643771689031,0.02124993,38724.0,38723.0,0.34872]
[1643771689228,0.02124993,38724.0,38723.0,0.39872]
[1643771689431,0.02124993,38724.0,38723.0,0.50073972]
[1643771689634,0.00244266,38729.0,38726.0,0.06455]
[1643771689835,0.004,38730.0,38728.0,0.72217949]
[1643771689836,0.003,38730.0,38728.0,0.72217949]
[1643771690079,0.001,38733.0,38730.0,0.41]
[1643771690280,0.001,38733.0,38731.0,0.3]
[1643771690480,0.001,38733.0,38731.0,0.64872]
[1643771690681,0.00515,38735.0,38731.0,0.34872]
[1643771690880,0.00515,38735.0,38734.0,0.25199631]
[1643771691081,0.02515,38735.0,38734.0,0.25199631]
[1643771691779,0.00515,38735.0,38734.0,0.25199631]
[1643771693937,0.001,38740.0,38734.0,0.25199631]
[1643771693938,0.07058343,38745.0,38737.0,0.488692]
[1643771694139,0.42472599,38757.0,38740.0,0.1]
[1643771694341,0.20271218,38759.0,38743.0,0.06452113]
[1643771694342,0.54570547,38756.0,38743.0,0.06452113]
[1643771694533,0.54570547,38758.0,38752.0,0.6497]
[1643771694734,0.54570547,38758.0,38757.0,0.6497]
[1643771694735,0.13973313,38758.0,38757.0,0.6497]
[1643771694939,0.03205971,38760.0,38757.0,1.06292]
[1643771695134,0.03205971,38760.0,38758.0,0.5842336]
[1643771695334,0.03205971,38760.0,38759.0,0.7017]
[1643771695533,0.03197074,38760.0,38759.0,1.14581678]
[1643771695733,0.01,38769.0,38759.0,1.92711781]
[1643771695734,0.00177058,38761.0,38759.0,1.92711781]
[1643771695941,0.00177058,38761.0,38760.0,0.34872]
[1643771696133,0.00177058,38761.0,38760.0,0.67832428]
[1643771696334,0.00177058,38761.0,38760.0,0.70946844]
[1643771696532,0.00177058,38761.0,38760.0,0.43186416]
[1643771696734,0.001,38761.0,38760.0,0.08314416]
[1643771696936,0.001,38761.0,38760.0,0.052]
[1643771697134,0.10327537,38761.0,38760.0,0.052]
[1643771697779,0.10327537,38761.0,38758.0,0.00654594]
[1643771697981,0.10327537,38761.0,38756.0,0.5]
[1643771698379,0.001,38761.0,38756.0,0.5]
[1643771698779,0.001,38761.0,38757.0,0.27640752]
[1643771699380,0.001,38761.0,38756.0,0.5]
[1643771699381,0.001,38761.0,38758.0,0.0278823]
[1643771699582,0.19701796,38761.0,38748.0,0.12902]
[1643771699983,0.19701796,38761.0,38746.0,0.9923]
[1643771699984,0.24901796,38761.0,38746.0,0.2324]
[1643771700285,0.19201796,38761.0,38748.0,0.06451732]
[1643771700479,0.19201796,38761.0,38756.0,0.02136512]
[1643771700680,0.09579827,38762.0,38756.0,0.02136512]
[1643771700882,0.001,38764.0,38755.0,0.21161108]
[1643771701335,0.001,38764.0,38755.0,0.21030308]
[1643771701729,0.02,38763.0,38761.0,0.25092446]
[1643771701928,0.02,38763.0,38754.0,0.19601796]
[1643771702129,0.02,38763.0,38757.0,0.064504]
[1643771702729,0.02,38763.0,38759.0,0.02]
[1643771702934,0.02,38763.0,38759.0,0.26354557]
[1643771702935,0.00134654,38762.0,38759.0,0.26354557]
[1643771703731,0.00134654,38762.0,38759.0,0.02]
[1643771704631,0.00134654,38762.0,38759.0,0.26605639]
[1643771704831,0.00134654,38762.0,38759.0,0.02]
[1643771705087,0.021,38764.0,38759.0,0.02]
[1643771705289,0.00134654,38762.0,38759.0,0.02]
[1643771706289,0.021,38764.0,38759.0,0.02]
[1643771706491,0.00128843,38762.0,38759.0,0.02]
[1643771706690,0.00128843,38762.0,38760.0,0.00925498]
[1643771706891,0.052,38761.0,38760.0,0.00925498]
[1643771707891,0.052,38761.0,38759.0,0.02]
[1643771709028,0.39171604,38760.0,38759.0,0.02]
[1643771709228,0.19171604,38760.0,38759.0,0.02]
[1643771709429,0.19207255,38760.0,38759.0,0.37000258]
[1643771709629,0.19207255,38760.0,38759.0,0.35000258]
[1643771710233,0.00130151,38761.0,38759.0,0.35000258]
[1643771710634,0.29708013,38760.0,38759.0,0.37000258]
[1643771711032,0.49646212,38760.0,38759.0,0.37000258]
[1643771711332,0.29708013,38760.0,38759.0,0.37000258]
[1643771711532,0.29708013,38760.0,38759.0,0.35000258]
[1643771713281,0.09447326,38760.0,38759.0,0.35000258]
[1643771713477,0.052,38760.0,38759.0,0.35000258]
[1643771713677,0.00129857,38761.0,38759.0,0.35000258]
[1643771714078,0.302,38760.0,38759.0,0.35000258]
[1643771714276,0.60977811,38760.0,38759.0,0.35000258]
[1643771714677,0.35977811,38760.0,38759.0,0.35000258]
[1643771714877,0.08672645,38753.0,38749.0,0.22215754]
[1643771715078,0.08672645,38753.0,38749.0,0.19353405]
[1643771715279,0.08672645,38753.0,38749.0,0.46498337]
[1643771715480,0.08672645,38753.0,38749.0,0.48498337]
[1643771716332,0.08672645,38753.0,38749.0,0.21353405]
[1643771717526,0.02,38754.0,38749.0,0.21353405]
[1643771717728,0.02,38754.0,38749.0,0.32804318]
[1643771717927,0.02,38754.0,38750.0,0.129013]
[1643771718533,0.00131201,38765.0,38762.0,0.09652635]
[1643771718732,0.00031201,38765.0,38763.0,0.19918888]
[1643771718931,0.02043283,38768.0,38764.0,0.34872]
[1643771719129,0.02043283,38768.0,38763.0,0.2726951]
[1643771719130,0.02043283,38768.0,38765.0,0.052]
[1643771719328,0.02043283,38768.0,38763.0,0.3496651]
[1643771719528,0.01,38769.0,38767.0,0.28051735]
[1643771719728,0.01,38769.0,38767.0,0.34500635]
[1643771721783,0.01,38769.0,38767.0,0.36500635]
[1643771722384,0.005,38769.0,38767.0,0.36500635]
[1643771723486,0.005,38769.0,38767.0,0.084489]
[1643771724129,0.005,38769.0,38767.0,0.072]
[1643771724526,0.005,38769.0,38767.0,0.02]
[1643771724926,0.005,38769.0,38767.0,0.0197202]
[1643771725126,0.005,38769.0,38768.0,0.00025864]
[1643771725927,0.205,38769.0,38768.0,0.00025864]
[1643771726328,0.005,38769.0,38768.0,0.00025864]
[1643771731827,0.00031213,38770.0,38769.0,0.5]
[1643771731828,0.00168261,38770.0,38769.0,0.5]
[1643771732029,0.00168261,38770.0,38769.0,1.29376278]
[1643771732227,0.00168261,38770.0,38769.0,1.01519102]
[1643771732626,0.00031213,38770.0,38769.0,1.01519102]
[1643771733426,0.00031213,38770.0,38769.0,1.12966002]
[1643771734826,0.00031213,38770.0,38769.0,1.07966002]
[1643771735779,0.00031213,38770.0,38769.0,1.12966002]
[1643771736983,0.00031213,38770.0,38769.0,0.57966002]
[1643771737183,0.00031213,38770.0,38769.0,0.16647102]
[1643771737585,0.00031213,38770.0,38768.0,0.00025864]
[1643771737983,0.00031213,38770.0,38767.0,0.01920293]
[1643771738387,0.00031213,38770.0,38767.0,0.08368393]
[1643771738836,0.00162339,38770.0,38767.0,0.13368393]
[1643771739432,0.00162339,38770.0,38767.0,0.19816547]
[1643771739831,0.00031213,38770.0,38767.0,0.14816547]
[1643771740032,0.00131126,38770.0,38767.0,0.14816547]
[1643771740432,0.00131126,38770.0,38767.0,0.26264347]
[1643771740734,0.00131126,38770.0,38767.0,0.21264347]
[1643771741133,0.00186237,38771.0,38767.0,0.21264347]
[1643771741334,0.00131126,38770.0,38767.0,0.21264347]
[1643771742334,0.00186237,38771.0,38767.0,0.21264347]
[1643771742579,0.0013074,38770.0,38767.0,0.26264347]
[1643771743383,0.00186237,38771.0,38767.0,0.26264347]
[1643771743581,0.00186237,38771.0,38767.0,0.52921895]
[1643771743781,0.0013074,38770.0,38767.0,0.52921895]
[1643771743982,0.0013074,38770.0,38767.0,0.26264347]
[1643771744181,0.0013074,38770.0,38767.0,0.21264347]
[1643771744783,0.00186237,38771.0,38767.0,0.21264347]
[1643771744982,0.0013074,38770.0,38767.0,0.21264347]
[1643771745183,0.0939166,38769.0,38767.0,0.14816547]
[1643771745384,0.0939166,38769.0,38767.0,0.01920293]
[1643771746341,0.294631,38768.0,38767.0,0.01920293]
[1643771746535,0.294631,38768.0,38766.0,0.00079707]
[1643771747537,0.294631,38768.0,38766.0,0.01920293]
[1643771749440,0.22262208,38767.0,38766.0,0.01920293]
[1643771750492,0.22262208,38767.0,38765.0,0.00079707]
[1643771750694,0.001,38768.0,38766.0,0.23257699]
[1643771750893,0.001,38768.0,38766.0,0.43257699]
[1643771751492,0.001,38768.0,38766.0,0.45177992]
[1643771751691,0.001,38768.0,38766.0,0.25177992]
[1643771752396,0.001,38768.0,38766.0,0.01920293]
[1643771756435,0.001,38768.0,38765.0,0.05868593]
[1643771756635,0.001,38768.0,38765.0,0.07868593]
[1643771758480,0.001,38768.0,38765.0,0.02]
[1643771760982,0.23352602,38767.0,38765.0,0.02]
[1643771761640,0.23352602,38767.0,38764.0,0.00925369]
[1643771762638,0.23352602,38767.0,38764.0,0.09374069]
[1643771763441,0.001,38768.0,38764.0,0.09374069]
[1643771765180,0.001,38768.0,38764.0,0.02925369]
[1643771766981,0.10030678,38767.0,38764.0,0.02925369]
[1643771767283,0.15030678,38767.0,38764.0,0.02925369]
[1643771767781,0.18611918,38767.0,38764.0,0.02925369]
[1643771767983,0.15030678,38767.0,38764.0,0.02925369]
[1643771768384,0.23836469,38767.0,38764.0,0.02925369]
[1643771768583,0.24071332,38767.0,38764.0,0.02925369]
[1643771769432,0.62733511,38765.0,38764.0,0.02925369]
[1643771769635,0.62733511,38765.0,38764.0,0.02]
[1643771769636,0.89048882,38765.0,38764.0,0.02]
[1643771769834,0.5,38763.0,38762.0,0.00112119]
[1643771770034,0.5,38763.0,38748.0,0.250614]
[1643771770035,0.82015832,38763.0,38748.0,0.1216]
[1643771770233,0.87015832,38763.0,38762.0,0.00112119]
[1643771770431,1.10792612,38763.0,38762.0,2.119e-05]
[1643771771033,1.10792612,38763.0,38761.0,0.02]
[1643771771034,1.20414775,38763.0,38761.0,0.02]
[1643771771231,0.74826961,38762.0,38761.0,0.02]
[1643771771432,0.80026961,38762.0,38761.0,0.02]
[1643771771631,0.29861159,38758.0,38748.0,0.1216]
[1643771771831,0.21188924,38757.0,38748.0,0.1216]
[1643771772031,0.24792477,38761.0,38750.0,0.22758548]
[1643771772231,0.29792477,38761.0,38750.0,0.22758548]
[1643771772695,0.26676138,38755.0,38754.0,0.02]
[1643771773496,0.26676138,38755.0,38750.0,0.22758548]
[1643771773897,0.26676138,38755.0,38749.0,0.35467082]
[1643771774096,0.26676138,38755.0,38749.0,0.44029799]
[1643771774396,0.26676138,38755.0,38749.0,0.41918482]
[1643771774597,0.26676138,38755.0,38750.0,0.02]
[1643771774998,0.26676138,38755.0,38750.0,0.02136129]
[1643771775998,0.08193764,38751.0,38750.0,0.02]
[1643771776633,0.08193764,38751.0,38746.0,0.129022]
[1643771777234,0.08193764,38751.0,38747.0,0.00136141]
[1643771777533,0.26147351,38749.0,38747.0,0.02136141]
[1643771778336,0.26147351,38749.0,38747.0,0.02]
[1643771778533,0.26147351,38749.0,38746.0,0.00136143]
[1643771779535,0.26147351,38749.0,38746.0,0.02]
[1643771779735,0.26147351,38749.0,38746.0,0.02136145]
[1643771780782,0.26147351,38749.0,38746.0,0.02]
[1643771781087,0.26147351,38749.0,38746.0,0.02136145]
[1643771781583,0.02,38751.0,38747.0,0.2058553]
[1643771781985,0.02,38751.0,38746.0,0.149023]
[1643771782185,0.02,38751.0,38747.0,0.3500814]
[1643771782485,0.02,38751.0,38747.0,0.0013614]
[1643771782684,0.28203546,38753.0,38747.0,0.0013614]
[1643771782885,0.28203546,38753.0,38749.0,0.27485341]
[1643771783387,0.28203546,38753.0,38749.0,0.129012]
[1643771784338,0.28203546,38753.0,38751.0,0.28317378]
[1643771784938,0.3671,38758.0,38752.0,0.19667452]
[1643771785339,0.1164,38764.0,38751.0,0.28317378]
[1643771785539,0.1164,38764.0,38755.0,2.03604398]
[1643771785742,0.8335,38765.0,38756.0,0.27239063]
[1643771785743,0.02,38761.0,38756.0,0.27239063]
[1643771786541,0.02,38761.0,38757.0,0.34872]
[1643771786743,0.27461931,38763.0,38758.0,0.20869418]
[1643771786941,0.27461931,38763.0,38759.0,0.26042031]
[1643771787141,0.27461931,38763.0,38760.0,0.19061054]
[1643771787341,0.27461931,38763.0,38759.0,0.44582375]
[1643771787789,0.27461931,38763.0,38759.0,0.26042031]
[1643771788189,0.27461931,38763.0,38759.0,0.26178128]
[1643771788390,0.27461931,38763.0,38759.0,0.00136097]
[1643771789192,0.27461931,38763.0,38758.0,0.128992]
[1643771789390,0.27461931,38763.0,38759.0,0.00136097]
[1643771789590,0.09656251,38760.0,38759.0,0.00136097]
[1643771790394,0.09656251,38760.0,38757.0,0.064501]
[1643771790593,0.09656251,38760.0,38758.0,0.00136103]
[1643771790793,0.09656251,38760.0,38758.0,0.27876358]
[1643771790994,0.09656251,38760.0,38758.0,0.00136103]
[1643771791193,0.27461931,38763.0,38758.0,0.06586003]
[1643771791637,0.27461931,38763.0,38759.0,0.00136099]
[1643771792637,0.10254302,38760.0,38759.0,0.00136099]
[1643771792837,0.27440275,38763.0,38759.0,0.00136097]
[1643771793238,0.27440275,38763.0,38760.0,0.064497]
[1643771793839,0.36911215,38763.0,38760.0,0.064497]
[1643771794042,0.36911215,38763.0,38760.0,0.06585796]
[1643771794640,0.36911215,38763.0,38760.0,0.08585796]
[1643771795085,0.36911215,38763.0,38760.0,0.084497]
[1643771795284,0.36911215,38763.0,38760.0,0.08585796]
[1643771795486,0.44,38765.0,38760.0,0.08585796]
[1643771795686,0.44,38765.0,38761.0,0.18867792]
[1643771795887,0.02,38765.0,38761.0,0.18867792]
[1643771796787,0.00143523,38767.0,38761.0,0.18867792]
[1643771796788,0.40279011,38766.0,38761.0,0.18867792]
[1643771797787,0.40279011,38766.0,38761.0,0.3199549]
[1643771798585,0.40279011,38766.0,38761.0,0.128976]
[1643771799340,0.40279011,38766.0,38760.0,0.02136094]
[1643771801139,0.40279011,38766.0,38760.0,0.02]
[1643771801338,0.45279011,38766.0,38760.0,0.02136094]
[1643771801540,0.40279011,38766.0,38760.0,0.02136094]
[1643771801739,0.40279011,38766.0,38761.0,0.064496]
[1643771802340,0.40279011,38766.0,38760.0,0.02]
[1643771802589,0.34013974,38767.0,38766.0,0.59720989]
[1643771803590,0.3187045,38767.0,38766.0,0.59720989]
[1643771805893,0.5,38766.0,38756.0,0.12899]
[1643771806095,0.2326997,38760.0,38747.0,0.05]
[1643771806355,0.2326997,38760.0,38745.0,0.2151897]
[1643771806356,0.05,38755.0,38740.0,0.10442304]
[1643771806546,0.05,38755.0,38738.0,0.5437]
[1643771806547,0.14822163,38755.0,38738.0,0.5437]
[1643771806745,0.152,38755.0,38740.0,0.10503025]
[1643771806945,0.08217275,38743.0,38740.0,0.10503025]
[1643771807149,0.08217275,38743.0,38739.0,0.42531188]
[1643771807348,0.08217275,38743.0,38741.0,0.20715593]
[1643771807746,0.27272689,38747.0,38741.0,0.27167993]
[1643771807947,0.052,38751.0,38741.0,0.33620393]
[1643771808147,0.052,38751.0,38741.0,0.27167993]
[1643771808547,0.20003732,38750.0,38744.0,0.0013615]
[1643771808746,0.052,38751.0,38744.0,0.0013615]
[1643771808948,0.02,38749.0,38745.0,0.064519]
[1643771809149,0.02,38749.0,38746.0,0.27171648]
[1643771809751,0.02,38749.0,38746.0,0.27307793]
[1643771809949,0.052,38755.0,38748.0,0.28037893]
[1643771810190,0.24189916,38751.0,38746.0,0.27307793]
[1643771810590,0.24189916,38751.0,38746.0,0.29307793]
[1643771810591,0.26189916,38751.0,38746.0,0.29307793]
[1643771810793,0.26189916,38751.0,38746.0,0.29171648]
[1643771810993,0.02,38751.0,38747.0,0.00136141]
[1643771811194,0.02,38751.0,38747.0,0.06587841]
[1643771811492,0.02,38751.0,38749.0,0.28814231]
[1643771811693,0.3738,38760.0,38749.0,0.28814231]
[1643771811993,0.30968341,38756.0,38749.0,0.28814231]
[1643771812192,0.30968341,38756.0,38746.0,0.54976248]
[1643771812193,0.19736337,38755.0,38752.0,0.00136122]
[1643771812395,0.19536402,38755.0,38752.0,0.00136122]
[1643771812591,0.32968341,38756.0,38752.0,0.00136122]
[1643771812793,0.19454525,38755.0,38752.0,0.00136122]
[1643771812991,0.32968341,38756.0,38752.0,0.00136122]
[1643771813193,0.09735531,38755.0,38751.0,0.23568006]
[1643771813392,0.09735531,38755.0,38752.0,0.00136124]
[1643771814245,0.09735531,38755.0,38751.0,0.23568006]
[1643771814646,0.09735531,38755.0,38752.0,0.33703186]
[1643771814847,0.02,38756.0,38752.0,0.33703186]
[1643771815446,0.02,38756.0,38752.0,0.40154086]
[1643771815645,0.19514435,38758.0,38752.0,0.084509]
[1643771815847,0.10378768,38755.0,38752.0,0.08587022]
[1643771816046,0.10378768,38755.0,38752.0,0.02136122]
[1643771816644,0.10378768,38755.0,38751.0,0.23568006]
[1643771816845,0.10378768,38755.0,38752.0,0.00136124]
[1643771817247,0.10378768,38755.0,38752.0,0.06587024]
[1643771817893,0.10378768,38755.0,38751.0,0.02]
[1643771818092,0.10378768,38755.0,38752.0,0.00136124]
[1643771819193,0.10378768,38755.0,38751.0,0.084512]
[1643771819391,0.10378768,38755.0,38752.0,0.00136124]
[1643771820395,0.10378768,38755.0,38751.0,0.02]
[1643771820693,0.10378768,38755.0,38752.0,0.00136124]
[1643771821451,0.10378768,38755.0,38751.0,0.02]
[1643771821850,0.10378768,38755.0,38752.0,0.00136124]
[1643771822051,0.19602678,38754.0,38752.0,0.00136124]
[1643771822451,0.10378768,38755.0,38752.0,0.00136124]
[1643771822651,0.10378768,38755.0,38751.0,0.02]
[1643771823055,0.10378768,38755.0,38752.0,0.00136124]
[1643771823653,0.10378768,38755.0,38752.0,5.324e-05]
[1643771824154,0.10378768,38755.0,38751.0,0.02]